bitfinex/quotes_SOLUSD_20251002
["timestamp","ask_amount","ask_price","bid_price","bid_amount"]
[1759372651441,28.4408568,223.06,222.96,0.69]
[1759372651730,28.4408568,223.06,222.93,20.8]
[1759372651731,0.14216157,223.03,222.93,25.56839049]
[1759372651935,0.68,223.02,222.94,42.65647521]
[1759372652231,0.68,223.02,222.95,31.78]
[1759372652415,3.05774048,223.01,222.95,20.8]
[1759372652618,3.05774048,223.01,222.96,31.78]
[1759372652819,0.28432314,223.01,222.96,31.78]
[1759372653139,0.68,223.0,222.96,31.78]
[1759372653329,4.76852345,223.01,222.96,31.78]
[1759372653531,5.44852345,223.01,222.96,31.78]
[1759372653717,0.68,223.0,222.96,31.78]
[1759372654118,0.68,223.0,222.94,20.8]
[1759372654315,0.68,223.0,222.95,31.76]
[1759372654732,2.37774048,222.98,222.96,31.76]
[1759372655034,4.76852345,223.01,222.87,0.69]
[1759372655035,0.28432314,222.96,222.87,0.69]
[1759372655232,3.05774048,222.95,222.88,31.8]
[1759372655429,0.68,222.95,222.88,31.8]
[1759372655739,0.68,222.97,222.89,0.69]
[1759372655933,0.96432314,222.97,222.89,0.69]
[1759372656737,0.68,222.97,222.89,0.69]
[1759372656946,0.68,222.97,222.9,4.48631673]
[1759372657147,5.16493326,222.97,222.9,4.48631673]
[1759372659616,0.68,222.96,222.89,10.87647521]
[1759372659815,0.68,222.95,222.88,10.87647521]
[1759372660032,0.68,222.94,222.89,20.8]
[1759372660246,0.68,222.93,222.89,20.8]
[1759372660457,0.68,222.93,222.9,31.78]
[1759372660754,0.28432314,222.95,222.9,31.78]
[1759372661241,0.68,222.94,222.9,31.78]
[1759372662028,5.165713,222.93,222.89,20.8]
[1759372662243,0.68,222.92,222.9,31.76]
[1759372662417,4.485713,222.93,222.91,31.76]
[1759372662626,0.68,222.92,222.91,31.78]
[1759372662829,0.68,222.92,222.85,21.49]
[1759372663033,0.68,222.92,222.86,31.76]
[1759372664238,4.48611547,222.91,222.86,31.76]
[1759372664544,4.48611547,222.91,222.86,111.65]
[1759372664951,4.48611547,222.91,222.87,31.76]
[1759372665333,0.68,222.91,222.87,31.76]
[1759372666344,4.77003614,222.93,222.8,92.65017791]
[1759372666345,1.51791558,222.89,222.8,92.65017791]
[1759372666534,1.51791558,222.86,222.81,31.78]
[1759372666738,15.69999551,222.93,222.77,114.87]
[1759372666739,2.48223872,222.85,222.77,114.87]
[1759372666921,0.68,222.84,222.77,114.87]
[1759372667370,5.16772606,222.83,222.77,48.54781531]
[1759372667542,6.00564164,222.83,222.78,31.78]
[1759372667742,0.96432314,222.82,222.78,31.78]
[1759372668323,0.68,222.81,222.78,31.78]
[1759372668523,0.68,222.8,222.78,31.78]
[1759372668724,0.68,222.8,222.75,0.69]
[1759372668967,0.68,222.8,222.76,31.78]
[1759372669133,0.28432314,222.82,222.76,31.78]
[1759372669134,0.68,222.79,222.76,31.78]
[1759372669533,6.97036361,222.82,222.76,31.78]
[1759372669757,0.96432314,222.82,222.76,31.78]
[1759372669929,5.45205626,222.83,222.75,13.22017709]
[1759372670129,0.28432314,222.81,222.76,31.78]
[1759372670340,0.68,222.8,222.72,0.69]
[1759372670665,11.48728545,222.94,222.77,20.8]
[1759372670968,11.48728545,222.94,222.78,49.67510783]
[1759372670969,2.19791558,222.93,222.78,49.67510783]
[1759372671131,6.68362858,222.93,222.8,10.87647521]
[1759372671440,6.68362858,222.93,222.82,4.48792747]
[1759372671441,0.28432314,222.92,222.82,4.48792747]
[1759372671646,0.68,222.91,222.83,32.57]
[1759372671847,2.19791558,222.91,222.83,32.57]
[1759372672164,0.28432314,222.9,222.83,0.69]
[1759372672459,0.28432314,222.9,222.84,31.88]
[1759372672865,0.28432314,222.88,222.84,31.88]
[1759372673458,0.28432314,222.88,222.78,10.87647521]
[1759372673459,2.19791558,222.87,222.78,0.69]
[1759372673754,0.28432314,222.86,222.79,31.88]
[1759372674057,0.28432314,222.86,222.8,31.88]
[1759372674957,0.28432314,222.84,222.79,0.66]
[1759372675155,0.28432314,222.84,222.8,31.88]
[1759372675455,0.28432314,222.84,222.8,32.54]
[1759372676156,4.48772606,222.83,222.8,32.54]
[1759372676944,0.28432314,222.84,222.8,32.54]
[1759372677542,4.4875492,222.84,222.8,32.54]
[1759372678041,4.4875492,222.84,222.81,0.66]
[1759372678240,0.28432314,222.84,222.81,0.66]
[1759372678434,4.48732331,222.85,222.8,31.88]
[1759372678642,4.48651801,222.89,222.82,0.66]
[1759372679437,0.28432314,222.88,222.82,79.86]
[1759372680244,4.48692062,222.87,222.82,79.86]
[1759372680554,4.48692062,222.87,222.83,0.66]
[1759372680760,0.28432314,222.88,222.84,31.86]
[1759372681264,21.52,222.9,222.85,0.66]
[1759372681265,0.14216157,222.9,222.85,0.66]
[1759372681462,0.28432314,222.9,222.85,0.66]
[1759372681937,1.00432314,222.9,222.84,31.86]
[1759372682143,5.49065949,222.9,222.84,36.34750235]
[1759372682456,4.77065949,222.9,222.84,37.00750235]
[1759372683667,0.28432314,222.91,222.84,37.00750235]
[1759372683963,0.72,222.9,222.85,31.84]
[1759372684471,1.80223872,222.91,222.85,32.5]
[1759372684637,0.28432314,222.91,222.85,32.5]
[1759372685256,1.80223872,222.91,222.85,32.5]
[1759372685568,1.51791558,222.94,222.87,4.48692062]
[1759372685860,0.28432314,222.92,222.86,0.66]
[1759372687169,4.77043379,222.92,222.86,0.66]
[1759372687343,0.28432314,222.92,222.86,5.14708276]
[1759372687747,4.77025162,222.92,222.86,0.66]
[1759372688471,0.28432314,222.93,222.86,5.14709689]
[1759372688681,0.28432314,222.93,222.87,0.66]
[1759372688845,4.48569289,222.94,222.87,0.66]
[1759372689055,0.28432314,222.93,222.87,0.66]
[1759372689676,0.28432314,222.93,222.88,4.48671931]
[1759372689976,0.28432314,222.93,222.89,31.84]
[1759372690381,0.28432314,222.93,222.89,32.5]
[1759372690750,0.28432314,222.97,222.9,0.66]
[1759372690954,0.72,222.96,222.89,31.84]
[1759372691185,0.28432314,222.95,222.89,31.84]
[1759372691749,0.28432314,222.93,222.89,31.84]
[1759372691949,2.23791558,222.92,222.86,79.86]
[1759372692253,0.72,222.92,222.87,31.82]
[1759372692573,0.14216157,222.89,222.83,0.66]
[1759372692868,2.23791558,222.93,222.84,31.82]
[1759372693052,0.28432314,222.92,222.85,0.66]
[1759372693561,1.00432314,222.92,222.85,0.66]
[1759372693762,0.72,222.98,222.87,20.8]
[1759372693975,0.72,222.98,222.88,32.48]
[1759372694351,0.72,222.98,222.89,0.66]
[1759372695376,1.00432314,222.98,222.89,0.66]
[1759372695751,0.28432314,222.96,222.9,4.48631673]
[1759372696070,1.00432314,222.96,222.9,0.66]
[1759372696249,1.00432314,222.96,222.91,31.86]
[1759372696455,1.00432314,222.96,222.91,32.52]
[1759372696860,0.72,222.95,222.91,31.86]
[1759372697391,0.72,222.94,222.91,31.86]
[1759372697779,0.28432314,222.94,222.91,31.86]
[1759372698274,0.28432314,222.94,222.92,31.86]
[1759372700067,5.20554354,222.94,222.92,31.86]
[1759372700551,2.52223872,222.98,222.92,31.86]
[1759372701058,1.80223872,222.98,222.92,31.86]
[1759372701257,0.72,222.97,222.92,31.86]
[1759372701453,1.00432314,222.96,222.92,31.86]
[1759372701654,0.86216157,222.96,222.92,31.86]
[1759372703385,0.14216157,222.96,222.92,31.86]
[1759372703566,0.14216157,222.96,222.93,0.66]
[1759372703890,0.97432314,222.95,222.92,31.82]
[1759372704093,0.83216157,222.94,222.92,31.82]
[1759372704300,2.49223872,222.93,222.9,31.82]
[1759372704476,15.69796726,222.96,222.84,0.67]
[1759372704477,0.83216157,222.92,222.84,0.67]
[1759372704684,0.14216157,222.91,222.85,31.82]
[1759372704864,0.14216157,222.91,222.86,0.67]
[1759372705060,0.14216157,222.91,222.87,0.67]
[1759372705686,0.14216157,222.9,222.87,0.67]
[1759372705872,0.14216157,222.9,222.85,32.49]
[1759372706079,0.14216157,222.9,222.86,0.67]
[1759372706496,0.14216157,222.9,222.87,0.67]
[1759372706690,0.14216157,222.9,222.88,0.67]
[1759372706874,0.28432314,222.9,222.85,32.49]
[1759372707081,0.28432314,222.9,222.86,0.67]
[1759372707292,4.77066058,222.9,222.87,31.82]
[1759372708000,0.14216157,222.9,222.88,31.8]
[1759372708307,0.14216157,222.9,222.88,32.47]
[1759372708806,0.14216157,222.9,222.88,31.8]
[1759372708983,0.14216157,222.9,222.85,0.67]
[1759372709178,0.14216157,222.9,222.86,32.47]
[1759372709585,4.48642702,222.9,222.86,31.8]
[1759372709963,0.28432314,222.92,222.87,0.67]
[1759372710179,0.97432314,222.92,222.87,0.67]
[1759372710378,0.28432314,222.92,222.88,0.67]
[1759372711505,0.28432314,222.92,222.89,32.45]
[1759372711678,4.48511427,222.96,222.9,0.67]
[1759372712292,0.28432314,222.95,222.9,0.67]
[1759372712592,0.97432314,222.95,222.9,0.67]
[1759372713169,5.17551179,222.94,222.89,110.98]
[1759372713489,0.97432314,222.93,222.9,31.78]
[1759372713682,0.28432314,222.93,222.9,31.78]
[1759372713880,0.97432314,222.93,222.9,31.78]
[1759372714372,0.69,222.92,222.89,79.2]
[1759372714574,0.69,222.91,222.9,31.78]
[1759372714991,0.97432314,222.93,222.89,79.2]
[1759372715183,5.46011368,222.93,222.9,31.76]
[1759372715384,5.46011368,222.93,222.89,79.2]
[1759372715794,4.77011368,222.93,222.9,31.76]
[1759372715982,5.46011368,222.93,222.9,31.76]
[1759372716290,0.69,222.92,222.9,31.76]
[1759372716677,4.77011368,222.93,222.9,31.76]
[1759372716884,4.7698355,222.94,222.9,31.76]
[1759372717190,0.69,222.93,222.9,31.76]
[1759372717382,4.7698355,222.94,222.9,31.76]
[1759372717585,0.69,222.93,222.9,31.76]
[1759372717795,0.69,222.93,222.91,31.74]
[1759372718998,4.7698355,222.94,222.91,31.74]
[1759372719399,0.28432314,222.96,222.91,32.41]
[1759372719695,4.48491541,222.97,222.92,0.67]
[1759372719923,4.48491541,222.97,222.92,79.87]
[1759372720203,0.28432314,222.96,222.92,79.87]
[1759372720398,0.28432314,222.96,222.93,0.67]
[1759372720697,0.28432314,222.96,222.94,31.76]
[1759372720891,0.28432314,222.99,222.95,0.67]
[1759372721095,4.48434107,223.0,222.95,0.67]
[1759372721296,0.28432314,222.99,222.95,0.67]
[1759372721996,0.28432314,222.99,222.94,31.76]
[1759372721997,0.69,222.98,222.94,31.76]
[1759372722185,0.69,222.98,222.93,79.2]
[1759372722380,4.7688366,222.99,222.95,31.76]
[1759372722898,0.28432314,222.99,222.95,32.43]
[1759372723302,9.31325416,223.01,222.95,32.43]
[1759372723303,7.79533858,223.01,222.96,0.67]
[1759372723506,12.27954553,223.01,222.96,0.67]
[1759372723676,0.28432314,223.0,222.95,31.76]
[1759372723877,1.80223872,223.0,222.93,79.2]
[1759372724183,0.28432314,222.94,222.92,110.96]
[1759372724386,0.97432314,222.93,222.92,31.76]
[1759372724583,3.34606412,222.93,222.92,31.76]
[1759372725396,0.28432314,222.93,222.92,31.76]
[1759372725595,4.77003614,222.93,222.92,31.76]
[1759372725898,4.77003614,222.93,222.88,0.67]
[1759372726201,4.77003614,222.93,222.89,31.76]
[1759372726579,0.28432314,222.93,222.9,0.67]
[1759372726781,0.28432314,222.92,222.86,0.67]
[1759372726996,0.28432314,222.92,222.87,31.76]
[1759372727193,0.28432314,222.92,222.88,0.67]
[1759372728810,0.28432314,222.92,222.89,0.67]
[1759372729105,0.28432314,222.91,222.87,0.67]
[1759372729408,0.97432314,222.91,222.9,31.74]
[1759372729803,4.77043861,222.91,222.9,31.74]
[1759372730590,7.83217959,222.91,222.86,79.2]
[1759372730907,2.65606412,222.89,222.86,79.2]
[1759372731095,0.28432314,222.86,222.8,0.67]
[1759372731296,2.37174098,222.85,222.81,31.72]
[1759372731490,2.37174098,222.85,222.81,32.39]
[1759372731891,2.37174098,222.85,222.81,31.72]
[1759372732092,2.37174098,222.85,222.81,32.39]
[1759372732401,2.37174098,222.85,222.82,0.67]
[1759372732798,4.77152576,222.86,222.81,31.72]
[1759372733015,7.14326674,222.86,222.81,32.39]
[1759372733205,7.14326674,222.86,222.82,0.67]
[1759372733587,2.65606412,222.86,222.81,36.20811229]
[1759372733787,2.65606412,222.86,222.82,0.69]
[1759372733982,4.77145185,222.86,222.82,0.69]
[1759372734400,7.14319283,222.86,222.82,0.69]
[1759372734590,7.80319283,222.86,222.81,31.72]
[1759372734796,7.80319283,222.86,222.81,32.41]
[1759372735610,5.14744284,222.85,222.81,31.72]
[1759372735801,3.31606412,222.84,222.82,31.72]
[1759372736512,0.94432314,222.84,222.82,31.72]
[1759372736700,0.28432314,222.84,222.82,31.72]
[1759372736906,4.77186569,222.84,222.82,31.72]
[1759372737100,5.43186569,222.84,222.82,31.72]
[1759372738011,0.28432314,222.82,222.77,21.49]
[1759372738201,0.28432314,222.82,222.78,32.41]
[1759372738999,0.28432314,222.82,222.78,111.61]
[1759372739403,0.28432314,222.82,222.78,116.09869886]
[1759372740215,4.77211424,222.83,222.79,31.72]
[1759372740716,4.77211424,222.83,222.79,32.41]
[1759372741222,0.28432314,222.83,222.79,32.41]
[1759372742123,0.28432314,222.83,222.79,36.89850491]
[1759372742622,0.28432314,222.83,222.79,36.20850491]
[1759372742818,0.28432314,222.83,222.79,36.89850491]
[1759372743294,7.5190376,222.86,222.79,36.89850491]
[1759372743295,0.28432314,222.84,222.8,0.69]
[1759372743491,0.28432314,222.84,222.81,0.69]
[1759372743729,0.28432314,222.84,222.82,32.41]
[1759372743897,0.28432314,222.84,222.79,4.48850491]
[1759372744103,0.28432314,222.84,222.8,32.41]
[1759372744309,0.28432314,222.84,222.81,0.69]
[1759372744506,0.28432314,222.84,222.82,0.69]
[1759372744712,0.28432314,222.84,222.83,31.72]
[1759372745399,0.28432314,222.85,222.83,31.72]
[1759372747395,0.28432314,222.86,222.83,31.72]
[1759372747618,0.94432314,222.86,222.83,31.72]
[1759372747810,0.28432314,222.86,222.83,31.72]
[1759372749038,5.43145449,222.86,222.83,31.72]
[1759372749207,4.77145449,222.86,222.83,31.72]
[1759372750127,0.28432314,222.87,222.83,31.72]
[1759372750430,0.94432314,222.87,222.83,31.72]
[1759372750599,0.28432314,222.87,222.83,36.20765329]
[1759372750800,5.14587858,222.93,222.84,0.69]
[1759372751019,5.14587858,222.93,222.84,79.89]
[1759372751214,5.14587858,222.93,222.85,0.69]
[1759372751423,4.4855147,222.94,222.86,31.72]
[1759372751605,4.4855147,222.94,222.87,0.69]
[1759372751810,5.1455147,222.94,222.87,0.69]
[1759372752123,0.28432314,222.93,222.87,0.69]
[1759372752304,0.94432314,222.93,222.87,0.69]
[1759372752814,0.94432314,222.93,222.86,36.20706728]
[1759372753002,0.66,222.92,222.86,36.20706728]
[1759372753207,0.66,222.92,222.86,36.89706728]
[1759372753702,0.28432314,222.93,222.87,0.69]
[1759372754215,0.28432314,222.93,222.88,4.48671931]
[1759372754403,0.66,222.92,222.89,31.72]
[1759372755108,0.66,222.91,222.89,31.72]
[1759372755301,0.66,222.9,222.89,31.72]
[1759372755500,0.28432314,222.91,222.89,31.72]
[1759372755723,0.94432314,222.91,222.89,31.72]
[1759372755923,0.28432314,222.91,222.89,31.72]
[1759372758840,0.28432314,222.91,222.9,31.7]
[1759372759413,4.48595133,222.92,222.88,4.48663321]
[1759372759414,0.28432314,222.92,222.88,4.48663321]
[1759372759627,0.28432314,222.92,222.89,31.7]
[1759372760734,0.28432314,222.92,222.89,32.39]
[1759372760911,0.28432314,222.92,222.89,31.7]
[1759372762324,0.94432314,222.93,222.89,31.7]
[1759372763230,5.43008579,222.93,222.89,31.7]
[1759372763734,0.67,222.92,222.89,31.7]
[1759372764318,7.14182677,222.93,222.89,31.7]
[1759372764628,0.28432314,222.9,222.85,5.16731549]
[1759372764966,0.28432314,222.9,222.86,32.38]
[1759372765141,0.28432314,222.9,222.84,79.2]
[1759372765319,0.28432314,222.88,222.85,31.7]
[1759372765520,0.93432314,222.88,222.85,31.7]
[1759372765916,0.28432314,222.88,222.86,31.7]
[1759372766121,0.28432314,222.88,222.84,79.2]
[1759372766449,5.42107826,222.88,222.84,79.2]
[1759372766755,5.42107826,222.88,222.85,31.7]
[1759372767339,5.42107826,222.88,222.84,79.2]
[1759372767536,5.42107826,222.88,222.85,31.7]
[1759372767849,4.77107826,222.88,222.85,31.7]
[1759372768220,4.77107826,222.88,222.84,79.88]
[1759372768550,4.77107826,222.88,222.85,31.7]
[1759372768853,4.77107826,222.88,222.86,31.7]
[1759372769424,0.28432314,222.88,222.86,31.7]
[1759372770042,0.28432314,222.88,222.87,32.38]
[1759372770220,0.28432314,222.91,222.87,32.38]
[1759372770421,0.28432314,222.91,222.84,4.48741988]
[1759372770653,0.28432314,222.91,222.85,32.38]
[1759372770945,0.14216157,222.91,222.86,0.68]
[1759372771124,0.14216157,222.91,222.87,4.48692062]
[1759372771324,0.14216157,222.91,222.88,32.38]
[1759372771834,0.14216157,222.91,222.89,0.68]
[1759372772466,0.28432314,222.92,222.89,0.68]
[1759372773023,0.28432314,222.92,222.88,31.7]
[1759372773224,0.28432314,222.92,222.88,32.38]
[1759372773650,0.65,222.94,222.89,0.68]
[1759372773853,0.14216157,222.95,222.89,0.68]
[1759372774034,0.65,222.94,222.89,0.68]
[1759372774242,0.28432314,222.95,222.89,0.68]
[1759372774445,0.65,222.94,222.89,0.68]
[1759372774826,0.28432314,222.95,222.9,0.68]
[1759372775026,0.28432314,222.95,222.91,32.38]
[1759372775240,0.65,222.97,222.92,0.68]
[1759372775442,0.28432314,222.97,222.91,31.7]
[1759372775646,12.27945957,223.01,222.93,0.68]
[1759372775948,12.92945957,223.01,222.94,31.7]
[1759372776130,7.79533858,223.01,222.94,0.68]
[1759372776350,3.02174098,223.0,222.91,0.68]
[1759372776546,0.28432314,222.98,222.92,31.7]
[1759372776749,0.28432314,222.98,222.93,0.68]
[1759372776952,0.28432314,222.98,222.94,5.16550925]
[1759372777145,0.28432314,222.98,222.95,31.7]
[1759372777350,0.93432314,222.98,222.92,0.68]
[1759372777561,0.28432314,222.98,222.93,31.7]
[1759372777881,0.28432314,222.98,222.94,0.68]
[1759372778252,0.28432314,222.98,222.93,31.7]
[1759372778552,4.48431077,223.0,222.95,0.68]
[1759372778762,0.28432314,223.0,222.95,0.68]
[1759372778963,0.28432314,223.0,222.96,0.68]
[1759372779166,0.28432314,223.0,222.97,31.7]
[1759372779779,0.28432314,223.0,222.97,32.38]
[1759372780150,7.79533858,223.01,222.97,32.38]
[1759372780344,0.14216157,223.0,222.97,32.38]
[1759372780550,0.28432314,223.0,222.97,31.7]
[1759372780770,0.1,223.06,222.92,4.48591422]
[1759372781073,0.1,223.06,222.96,4.48510943]
[1759372781074,0.65,223.05,222.96,4.48510943]
[1759372781365,0.65,223.05,222.97,32.38]
[1759372781668,0.65,223.05,222.98,0.68]
[1759372781857,0.93432314,223.05,222.98,0.68]
[1759372782166,5.41768253,223.05,222.98,5.16460355]
[1759372782566,0.65,223.04,222.98,0.68]
[1759372783375,4.76768253,223.05,222.98,5.16468834]
[1759372783568,4.76768253,223.05,222.98,0.68]
[1759372783749,0.65,223.04,222.98,0.68]
[1759372784076,0.65,223.04,222.99,31.68]
[1759372784258,0.65,223.03,222.99,31.68]
[1759372784848,4.76768253,223.05,223.0,0.68]
[1759372785048,4.48370174,223.03,222.99,31.68]
[1759372785275,5.13370174,223.03,222.99,31.68]
[1759372785456,5.13370174,223.03,222.99,32.36]
[1759372785774,4.48370174,223.03,222.99,32.36]
[1759372786143,0.93432314,223.03,222.99,31.68]
[1759372787077,0.28432314,223.03,222.99,32.36]
[1759372787371,0.28432314,223.03,222.99,31.68]
[1759372787576,0.28432314,223.03,223.0,31.68]
[1759372788278,11.3080142,223.06,223.0,31.68]
[1759372788279,0.1,223.06,223.01,0.68]
[1759372788983,0.38432314,223.06,223.02,0.68]
[1759372789277,0.38432314,223.06,223.03,32.36]
[1759372794151,0.1,223.06,223.03,32.36]
[1759372794474,0.1,223.06,223.03,31.68]
[1759372794659,0.1,223.06,223.04,0.7]
[1759372794863,0.1,223.06,223.03,31.68]
[1759372795477,0.1,223.06,223.03,32.38]
[1759372795864,0.1,223.06,223.04,0.7]
[1759372796374,0.1,223.06,223.04,8.72368276]
[1759372797370,0.1,223.06,223.05,32.38]
[1759372797770,0.1,223.06,223.03,0.7]
[1759372798079,0.1,223.06,223.04,20.8]
[1759372798377,0.1,223.06,223.05,31.68]
[1759372798959,0.1,223.06,223.05,32.38]
[1759372799570,0.1,223.06,223.03,25.98359819]
[1759372799766,0.1,223.06,223.05,31.66]
[1759372800884,0.79,223.06,223.0,30.46690211]
[1759372801077,0.1,223.06,223.04,0.7]
[1759372801263,0.1,223.06,223.05,31.66]
[1759372801566,1.07432314,223.06,223.0,79.2]
[1759372801766,0.28432314,223.04,222.97,14.057841]
[1759372801973,0.28432314,223.02,222.94,5.18250065]
[1759372802179,0.97432314,223.02,222.95,32.36]
[1759372802383,0.97432314,223.02,222.96,31.66]
[1759372803175,4.48410385,223.01,222.96,31.66]
[1759372803485,0.1,223.06,222.98,10.87647521]
[1759372803678,0.1,223.06,222.99,31.66]
[1759372803872,0.1,223.06,222.99,32.36]
[1759372804071,0.1,223.06,223.0,0.7]
[1759372804870,4.58309961,223.06,223.0,0.7]
[1759372805268,4.58309961,223.06,223.01,31.66]
[1759372805508,4.58309961,223.06,223.02,0.7]
[1759372805678,4.58309961,223.06,223.03,31.66]
[1759372805994,0.1,223.06,223.03,31.66]
[1759372806203,0.1,223.06,223.04,0.7]
[1759372806705,0.1,223.06,223.03,31.66]
[1759372806874,0.1,223.06,223.04,0.7]
[1759372807296,0.1,223.06,223.03,31.66]
[1759372807905,0.1,223.06,223.02,0.7]
[1759372808204,0.1,223.06,223.03,31.66]
[1759372810032,0.1,223.06,223.03,32.36]
[1759372810378,0.1,223.06,223.04,0.7]
[1759372811373,0.1,223.06,223.03,31.66]
[1759372811573,0.1,223.06,223.02,79.2]
[1759372811574,4.58314645,223.06,223.02,79.2]
[1759372811792,0.69,223.05,223.03,31.66]
[1759372812100,0.1,223.06,223.03,31.66]
[1759372812276,0.1,223.06,223.04,0.7]
[1759372813075,0.1,223.06,223.05,0.7]
[1759372813495,0.1,223.06,223.05,5.1832997]
[1759372814106,0.1,223.06,223.05,0.7]
[1759372814320,0.1,223.06,223.05,5.1832997]
[1759372814921,0.1,223.06,223.05,31.66]
[1759372815076,0.79,223.06,223.05,31.66]
[1759372815392,5.41532908,223.06,223.01,79.2]
[1759372815587,5.41532908,223.06,223.02,31.66]
[1759372815988,0.28432314,223.05,223.01,79.2]
[1759372816206,0.69,223.04,223.02,31.66]
[1759372816506,0.69,223.03,223.02,31.66]
[1759372817419,5.17370174,223.03,223.02,31.66]
[1759372819501,4.48350071,223.04,223.02,31.66]
[1759372819687,5.17350071,223.04,223.02,31.66]
[1759372820503,0.97432314,223.03,222.97,0.7]
[1759372820710,0.97432314,223.03,222.98,31.66]
[1759372822406,4.48390278,223.02,222.98,31.66]
[1759372822615,0.28432314,223.01,222.97,0.7]
[1759372822795,0.28432314,223.01,222.95,92.50865042]
[1759372823002,0.28432314,223.01,222.96,31.66]
[1759372823514,0.1,223.06,222.99,20.8]
[1759372823822,0.1,223.06,223.0,31.66]
[1759372824108,0.1,223.06,223.03,20.8]
[1759372824287,0.1,223.06,223.04,31.66]
[1759372824606,0.1,223.06,223.05,4.4832997]
[1759372824799,0.1,223.06,223.05,5.1432997]
[1759372825810,0.1,223.06,223.05,16.01977491]
[1759372827100,0.1,223.06,223.05,56.9432997]
[1759372827416,0.1,223.06,223.05,57.6032997]
[1759372828297,0.1,223.06,223.05,52.46]
[1759372828811,0.1,223.06,223.05,31.66]
[1759372829208,0.1,223.06,223.05,36.8032997]
[1759372829714,0.1,223.06,223.05,32.32]
[1759372830014,0.1,223.06,223.05,31.66]
[1759372831111,0.1,223.06,223.03,79.2]
[1759372831312,0.1,223.06,222.95,92.50865042]
[1759372831313,0.97432314,223.05,222.95,92.50865042]
[1759372831505,0.69,223.04,222.96,31.66]
[1759372831698,0.69,223.04,222.97,31.66]
[1759372832391,4.48370174,223.03,222.97,31.66]
[1759372832595,5.17370174,223.03,222.97,36.14489865]
[1759372833010,5.17370174,223.03,222.97,31.66]
[1759372833717,5.17370174,223.03,222.97,36.14488704]
[1759372834413,5.17370174,223.03,222.98,31.66]
[1759372834801,0.69,223.02,222.98,31.66]
[1759372835009,0.69,223.01,222.95,100.0]
[1759372835320,0.69,223.01,222.96,31.66]
[1759372835695,0.28432314,223.02,222.96,31.66]
[1759372835899,0.69,223.0,222.96,31.66]
[1759372836097,0.97432314,223.04,222.97,0.66]
[1759372836303,2.49074938,223.04,222.97,0.66]
[1759372836705,0.97432314,223.04,222.97,0.66]
[1759372837020,0.28432314,223.04,222.97,0.66]
[1759372837607,0.1,223.06,222.99,20.8]
[1759372837808,0.1,223.06,223.0,32.32]
[1759372838323,5.27313154,223.06,223.0,32.32]
[1759372838821,5.27313154,223.06,223.0,31.66]
[1759372840054,6.974226,223.05,222.99,79.2]
[1759372840324,0.28432314,223.03,223.0,31.66]
[1759372840516,0.69,223.02,223.0,31.66]
[1759372841401,0.69,223.01,223.0,31.66]
[1759372842109,5.17410385,223.01,223.0,31.66]
[1759372842823,0.28432314,223.04,223.0,31.66]
[1759372843028,0.69,223.03,223.01,31.66]
[1759372843208,0.28432314,223.04,223.02,31.66]
[1759372843412,0.28432314,223.03,223.02,31.66]
[1759372843632,0.28432314,223.04,223.02,31.66]